Cogmind - Beta 10.2 @@@ ROGUE MODE // 2021.04.02 @ 20:19:52 Player: ChromeKnight Result: Destroyed by G-73 Enforcer with Phase Gun Performance ------------- Evolutions (7) 3500 Regions Visited (15) 3000 Robots Destroyed (159) 795 Value Destroyed (8369) 8369 Prototype IDs (41) 820 Alien Tech Used (0) 0 Bonus (2951) 2951 TOTAL SCORE: 19435 Bonus ------- High Alert Combat Kills 1068 Follower Combat Kills 238 Aligned with FarCom 300 Met Warlord at Base 500 MAIN.C Attacked Warlord 500 Scanned by Researcher 500 Friendly Fire -155 Cogmind --------- Core Integrity 0/1300 Matter 700/700 Energy 100/100 System Corruption 14% Temperature Cool (0) Movement Core (150) Ox2 Location -3/Testing Parts ------- > --- POWER (1) -------- (None) > --- PROPULSION (4) --- (None) > --- UTILITY (12) ----- Large Matter Pod Matter Compressor Advanced Targeting Computer Advanced Targeting Computer > --- WEAPON (4) ------- (None) > --- INVENTORY (4) ---- (None) Peak State ------------ > --- POWER ------------ Antimatter Reactor > --- PROPULSION ------- Flexi-carbon Leg Armored Leg Myomer Leg Myomer Leg > --- UTILITY ---------- Advanced Heat Sink Lightpack 2.0 Advanced Targeting Computer Advanced Targeting Computer Advanced Targeting Computer Advanced Targeting Computer Improved Target Analyzer Armor Integrity Analyzer Improved Phase Shifter Heavy Armor Plating > --- WEAPON ----------- Heavy Quantum Rifle Enhanced Coil Gun Enhanced Coil Gun Enhanced Coil Gun > --- INVENTORY -------- Light Fission Core Antimatter Reactor Improved Titanium Leg Flexi-carbon Leg Flexi-carbon Leg Myomer Leg Large Matter Pod Matter Compressor Modified TNC 0b10 Decoder Chip [Looter] Core Analyzer Recoil Nullifier Improved Kinecellerator Improved Kinecellerator Improved Kinecellerator Minesniffer Drone Bay Coil Gun Enhanced Coil Gun Enhanced Coil Gun Railgun Railgun Vortex Lance Vortex Lance [Rating: 135] Favorites ----------- Power Neutrino Core Engine Ion Engine Power Core Neutrino Core Reactor Antimatter Reactor Propulsion Flying Fortress v7 Leg Myomer Leg Hover Unit Hover Unit Flight Unit Flying Fortress v7 Utility Advanced Targeting Computer Device Improved Weapon Cycler Storage Lightpack 2.0 Processor Advanced Targeting Computer Protection Heavy Armor Plating Weapon Enhanced Coil Gun Energy Gun Warp Gun Ballistic Gun Enhanced Coil Gun Ballistic Cannon Hypervelocity Gauss Cannon Piercing Weapon Vortex Lance Build | -11 -10 -10 -10 -9 -8 -7 -6 -5 -5 -5 -5 -4 -4 -3 -3 ------- Run | Scr Mat Min Exi Min Mat Fac Fac Fac Upp Upp War Pro Fac Res Tes Slots Evolved 14 | . . . . . 4 2 2 2 . . . . 2 2 . Power . | . . . . . . . . . . . . . . . . Propulsion 2 | . . . . . 2 . . . . . . . . . . Utility 10 | . . . . . 2 1 2 2 . . . . 1 2 . Weapon 2 | . . . . . . 1 . . . . . . 1 . . Parts Attached 154 | 6 4 1 1 3 8 17 6 5 2 3 4 2 23 26 43 Power 19 | 1 . . . 1 . 5 1 1 . . . 1 3 4 2 Engine 5 | 1 . . . 1 . 3 . . . . . . . . . Core 5 | . . . . . . 2 1 1 . . . . 1 . . Reactor 9 | . . . . . . . . . . . . 1 2 4 2 Propulsion 35 | 2 2 . . 2 1 . . . . . . . 6 8 14 Treads . | . . . . . . . . . . . . . . . . Leg 32 | 2 . . . 2 . . . . . . . . 6 8 14 Wheel . | . . . . . . . . . . . . . . . . Hover 2 | . 2 . . . . . . . . . . . . . . Flight 1 | . . . . . 1 . . . . . . . . . . Utility 48 | 1 . 1 1 . 4 5 3 2 2 1 2 . 6 5 15 Device 13 | . . 1 . . . . 2 . 2 . 2 . 2 1 3 Storage 6 | 1 . . 1 . . . . . . . . . . . 4 Processor 16 | . . . . . 1 4 1 2 . 1 . . 4 2 1 Hackware . | . . . . . . . . . . . . . . . . Protection 13 | . . . . . 3 1 . . . . . . . 2 7 Artifact . | . . . . . . . . . . . . . . . . Weapon 52 | 2 2 . . . 3 7 2 2 . 2 2 1 8 9 12 Energy Gun 3 | . . . . . . . . . . . . . . . 3 Energy Cannon . | . . . . . . . . . . . . . . . . Ballistic Gun 46 | 2 2 . . . 3 7 2 2 . 2 1 1 8 9 7 Ballistic Cannon 1 | . . . . . . . . . . . 1 . . . . Launcher . | . . . . . . . . . . . . . . . . Special Weapon . | . . . . . . . . . . . . . . . . Impact Weapon . | . . . . . . . . . . . . . . . . Slashing Weapon . | . . . . . . . . . . . . . . . . Piercing Weapon 2 | . . . . . . . . . . . . . . . 2 Special Melee Weapon . | . . . . . . . . . . . . . . . . Unidentified Prototypes 16 | . . 1 . . 2 1 . . . . 1 . 1 1 9 Parts Lost 51 | . . . . 2 . 3 . . 2 1 . . 3 8 32 Power 4 | . . . . . . . . . . . . . 1 1 2 Propulsion 10 | . . . . 2 . . . . . . . . . . 8 Utility 23 | . . . . . . 1 . . 2 . . . 2 5 13 Weapon 14 | . . . . . . 2 . . . 1 . . . 2 9 Highest Loss Streak 13 | . . . . 2 . 3 . . 1 1 . . 3 6 13 Average Slot Usage (%) 78 | . 85 85 85 75 59 67 72 75 71 75 76 76 88 85 86 Engine 3 | . 14 14 14 14 9 4 3 . . . . . . . . Core 1 | . . . . . . 2 2 5 5 5 5 1 . . . Reactor 1 | . . . . . . . . . . . . 3 4 3 3 Leg 7 | . 25 . . 15 . . . . . . . . 14 19 17 Hover 2 | . 2 28 28 3 . . . . . . . . . . . Flight 3 | . . . . . 9 7 6 5 5 5 5 5 1 . . Device 6 | . . . . . . . 12 11 10 11 11 11 10 5 7 Storage 6 | . 14 14 14 14 9 7 6 5 5 5 5 5 5 4 3 Processor 21 | . . . . . 5 15 20 28 24 28 29 29 29 29 29 Protection 1 | . . . . . 8 5 . . . . . . . 2 3 Ballistic Gun 19 | . 28 28 28 28 18 22 20 17 17 17 16 17 20 18 17 Naked Turns . | . . . . . . . . . . . . . . . . Heaviest Build 79 | 11 12 12 13 15 21 27 33 36 36 37 46 37 48 62 79 Greatest Support 109 | 20 20 12 12 20 72 72 72 72 72 72 72 72 81 86 109 Greatest Overweight (x) 18 | 2 1 . 1 4 . . . . . . 12 . . . 18 Average Overweight (x) . | . . . . . . . . . . . . . . . . Largest Inventory Capacity 24 | 6 6 6 24 24 24 24 24 24 24 24 24 24 24 24 24 Average Capacity 18 | 4 6 6 17 24 24 24 24 24 24 24 24 24 24 24 9 Most Carried 24 | 1 6 6 11 16 24 24 24 24 24 24 24 24 24 24 24 Average Carried 17 | . 4 5 8 13 21 23 23 23 23 23 23 24 23 23 8 Final Capacity 24 | 6 6 6 24 24 24 24 24 24 24 24 24 24 24 24 4 Final Carried 24 | 1 6 6 11 16 24 22 24 24 23 24 24 24 24 24 . Class Distribution -------------------- 28% | Scavenger-Gunner 27% | Hauler-Gunner 15% | Mutant 10% | Commander-Scout 9% | Hauler-Scout 7% | Hauler-Mutant Dominant Class ---------------- Mutant | -10/Materials Mutant | -10/Mines Hauler-Mutant | -10/Exiles Hauler-Mutant | -9/Mines Hauler-Mutant | -8/Materials Hauler-Gunner | -7/Factory Hauler-Gunner | -6/Factory Hauler-Gunner | -5/Factory Hauler-Gunner | -5/Upper Caves Hauler-Scout | -5/Upper Caves Commander-Scout | -5/Warlord Commander-Scout | -4/Proximity Caves Scavenger-Gunner | -4/Factory Scavenger-Gunner | -3/Research Scavenger-Gunner | -3/Testing Resources | -11 -10 -10 -10 -9 -8 -7 -6 -5 -5 -5 -5 -4 -4 -3 -3 ----------- Run | Scr Mat Min Exi Min Mat Fac Fac Fac Upp Upp War Pro Fac Res Tes Matter Collected 6763 | 260 11 229 . 66 195 663 556 68 263 181 184 468 696 827 2096 Remotely . | . . . . . . . . . . . . . . . . Salvage Created 9597 | . 11 13 . 118 387 837 596 107 968 356 . 555 1308 1540 2801 Parts 450 | . 2 1 . 10 21 40 24 5 30 25 . 18 75 50 149 Haulers Intercepted 3 | . . . . . 1 1 1 . . . . . . . . Recyclers Shooed 5 | . . 1 . . . 1 3 . . . . . . . . Parts Field Recycled . | . . . . . . . . . . . . . . . . Retrieved Matter . | . . . . . . . . . . . . . . . . Parts Self-Destructed 150 | . . . . . . . . . 30 15 80 25 . . . Prevented 16 | . . . . . . . . . . 2 11 3 . . . Kills | -11 -10 -10 -10 -9 -8 -7 -6 -5 -5 -5 -5 -4 -4 -3 -3 ------- Run | Scr Mat Min Exi Min Mat Fac Fac Fac Upp Upp War Pro Fac Res Tes Combat Hostiles Destroyed 128 | . 1 1 . 3 6 12 3 1 15 7 . 7 17 20 35 Melee 6 | . . . . . . . . . . . . . . . 6 Guns 122 | . 1 1 . 3 6 12 3 1 15 7 . 7 17 20 29 Classes Destroyed 19 | . 1 . . 2 5 2 . 1 1 1 . 1 2 . 3 Worker 5 | . . . . . 1 1 . . . . . . . . 3 Builder 5 | . . . . . . . . . . . . . 3 1 1 Tunneler 1 | . . . . . . 1 . . . . . . . . . Hauler 3 | . . . . . 1 1 1 . . . . . . . . Recycler 6 | . . . . . 1 1 2 . . . . . . 1 1 Operator 1 | . . . . . . . . 1 . . . . . . . Watcher 4 | . . . . . . 2 1 . . . . . . . 1 Swarmer 12 | . 1 1 . . 3 . . . 1 . . . . 4 2 Saboteur 1 | . . . . . . . . . . . . . . . 1 Grunt 59 | . . . . 2 . 11 . . 10 1 . 4 8 9 14 Brawler 2 | . . . . . . . . . 1 . . . . 1 . Duelist 4 | . . . . 1 . . . . 1 1 . . . 1 . Protector 1 | . . . . . . . . . . . . . 1 . . Researcher 6 | . . . . . . . . . . . . . . . 6 Sentry 15 | . . . . . 2 1 1 1 2 1 . 1 2 3 1 Hunter 17 | . . . . . 1 . 2 . . 1 . . 4 2 7 Programmer 13 | . . . . . . . . . . . . 2 2 . 9 Q-Series 1 | . . . . . . . . . . . . . . . 1 Decomposer 2 | . . . . . . . . . . . . 2 . . . Master Thief 3 | . . . . . . . . . . 3 . . . . . Best Kill Streak 14 | . 1 1 . 3 7 4 3 2 5 4 . 3 5 7 14 Combat Bots Only 9 | . 1 1 . 3 5 3 2 1 5 4 . 3 4 6 9 Max Kills in Single Turn 2 | . 1 1 . 1 2 2 1 1 1 1 . 2 2 2 2 Gunslinging 1 | . . . . . . . . . . . . 1 1 . 1 Exploded . | . . . . . . . . . . . . . . . . Melee 1 | . . . . . . . . . . . . . . . 1 Uniques/NPCs Destroyed . | . . . . . . . . . . . . . . . . Combat | -11 -10 -10 -10 -9 -8 -7 -6 -5 -5 -5 -5 -4 -4 -3 -3 -------- Run | Scr Mat Min Exi Min Mat Fac Fac Fac Upp Upp War Pro Fac Res Tes Damage Taken 12945 | . 66 23 . 226 173 1146 307 49 726 113 . 371 987 1564 7194 Core 1991 | . 18 . . 63 36 234 23 . 142 22 . 73 59 82 1239 Absorbed by Shields 459 | . . . . . . . . . . . . 243 178 . 38 Core Remaining (%) 84 | 100 . . . 67 93 66 97 . . . . 76 94 . . Volleys Fired 347 | . 5 5 . 9 19 51 16 3 28 14 18 22 28 38 91 Largest 4 | . 2 2 . 2 2 3 3 3 3 3 1 3 4 4 4 Hottest 136 | . 40 40 . 40 50 78 88 85 88 93 61 93 133 136 120 Shots Fired 1070 | . 10 10 . 18 38 153 48 9 84 41 18 66 112 145 318 Gun 1052 | . 10 10 . 18 38 153 48 9 84 41 . 66 112 145 318 Cannon 18 | . . . . . . . . . . . 18 . . . . Launcher . | . . . . . . . . . . . . . . . . Special . | . . . . . . . . . . . . . . . . Kinetic 1067 | . 10 10 . 18 38 153 48 9 84 41 18 66 112 145 315 Thermal 3 | . . . . . . . . . . . . . . . 3 Explosive . | . . . . . . . . . . . . . . . . Electromagnetic . | . . . . . . . . . . . . . . . . Robot Hit Streak 54 | . 2 2 . 9 6 33 6 8 40 12 . 17 20 30 54 Robot Miss Streak 3 | . 2 2 . 1 2 3 3 . 2 2 . 3 3 1 3 Penetration Max 2 | . . . . . . . 1 . 1 2 . 1 1 2 1 Secondary Targets 28 | . . . . . 3 1 . . 5 . . 2 6 3 8 Max Gunslinging Chain 2 | . . . . . 1 1 . . 1 . . 1 2 1 1 Shots Hit Robots 805 | . 5 5 . 14 26 122 25 6 69 31 . 50 83 110 259 Core Hits 352 | . 2 2 . 5 12 40 16 4 35 15 . 21 50 52 98 Critical Hits 79 | . . . . . 1 . . 1 5 3 . 4 10 23 32 Critical Kills 34 | . . . . . . . . 1 2 2 . 3 4 9 13 Critical Parts Destroyed 41 | . . . . . . . . . 3 1 . 1 6 13 17 Melee Attacks 21 | . . . . . . . . . . . . . . . 21 Impact . | . . . . . . . . . . . . . . . . Slashing . | . . . . . . . . . . . . . . . . Piercing . | . . . . . . . . . . . . . . . . Entropic 21 | . . . . . . . . . . . . . . . 21 Sneak Attacks . | . . . . . . . . . . . . . . . . Combat Hostiles . | . . . . . . . . . . . . . . . . Follow-up Attacks . | . . . . . . . . . . . . . . . . Damage Inflicted 20907 | . 50 59 . 133 410 1918 633 124 1535 806 . 1332 2679 3279 7949 Guns 19668 | . 50 59 . 133 410 1918 633 124 1535 806 . 1332 2679 3279 6710 Cannons . | . . . . . . . . . . . . . . . . Explosions . | . . . . . . . . . . . . . . . . Melee 1231 | . . . . . . . . . . . . . . . 1231 Ramming 8 | . . . . . . . . . . . . . . . 8 Kinetic 19590 | . 50 59 . 133 410 1918 633 124 1535 806 . 1332 2679 3279 6632 Thermal 78 | . . . . . . . . . . . . . . . 78 Explosive . | . . . . . . . . . . . . . . . . Electromagnetic . | . . . . . . . . . . . . . . . . Impact . | . . . . . . . . . . . . . . . . Slashing . | . . . . . . . . . . . . . . . . Piercing . | . . . . . . . . . . . . . . . . Entropic 1231 | . . . . . . . . . . . . . . . 1231 Highest Corruption 14 | . . . . . . 6 . . . . . . . 2 14 Average Corruption 3 | . . . . . . 4 . . . . . . . 1 4 Corruption Purged . | . . . . . . . . . . . . . . . . Effects 77 | . . . . . . 21 . . . . . . . 5 51 Message Errors 14 | . . . . . . 4 . . . . . . . . 10 Matter Fused 10 | . . . . . . 2 . . . . . . . . 8 Heat Flow Errors 7 | . . . . . . 2 . . . . . . . 1 4 Energy Discharges 5 | . . . . . . . . . . . . . . 1 4 Parts Rejected 2 | . . . . . . 1 . . . . . . . . 1 Data Loss (minor) 7 | . . . . . . 1 . . . . . . . 1 5 Misdirections 1 | . . . . . . . . . . . . . . . 1 Targeting Errors 28 | . . . . . . 11 . . . . . . . 1 16 Weapon Failures 3 | . . . . . . . . . . . . . . 1 2 Overload Shots . | . . . . . . . . . . . . . . . . Overflow Damage 76 | . . . . . . . . . . . . . . . 76 Projectiles . | . . . . . . . . . . . . . . . . Explosions . | . . . . . . . . . . . . . . . . Melee 76 | . . . . . . . . . . . . . . . 76 Knockbacks . | . . . . . . . . . . . . . . . . Impact . | . . . . . . . . . . . . . . . . Kinetic . | . . . . . . . . . . . . . . . . Secondary . | . . . . . . . . . . . . . . . . Self-Inflicted Damage 4 | . . . . . . . . . . . . . . . 4 Shots . | . . . . . . . . . . . . . . . . Rammed 2 | . . . . . . . . . . . . . . . 2 Targets Rammed 3 | . . . . . . . . . . . . . . 1 2 Kicked 1 | . . . . . . . . . . . . . . 1 . Crushed . | . . . . . . . . . . . . . . . . Highest Temperature 346 | . . 6 . 10 72 256 170 59 346 166 340 291 326 187 267 Average Temperature 81 | . . 3 . 5 28 64 58 31 132 67 170 93 120 62 66 Received Heat Transfer 1988 | . . . . 72 18 456 18 9 243 9 . 56 86 198 823 Effects 6 | . . . . . . 3 . . 1 . . . 1 . 1 Energy Bleed 3 | . . . . . . . . . 1 . . . 1 . 1 Interference 3 | . . . . . . 3 . . . . . . . . . Siege Activations . | . . . . . . . . . . . . . . . . Robots Corrupted . | . . . . . . . . . . . . . . . . Combat Hostiles . | . . . . . . . . . . . . . . . . Parts Fried 1 | . . . . . . . . . . 1 . . . . . Impact Corruptions . | . . . . . . . . . . . . . . . . Robots Melted . | . . . . . . . . . . . . . . . . Combat Hostiles . | . . . . . . . . . . . . . . . . Parts Melted . | . . . . . . . . . . . . . . . . Heat Transferred 111 | . . . . . . . . . . . . . . . 111 Parts Sabotaged . | . . . . . . . . . . . . . . . . Parts Stolen . | . . . . . . . . . . . . . . . . Parts Stripped . | . . . . . . . . . . . . . . . . Power Chain Reactions . | . . . . . . . . . . . . . . . . Missiles Intercepted . | . . . . . . . . . . . . . . . . Alert | -11 -10 -10 -10 -9 -8 -7 -6 -5 -5 -5 -5 -4 -4 -3 -3 ------- Run | Scr Mat Min Exi Min Mat Fac Fac Fac Upp Upp War Pro Fac Res Tes Peak Influence 915 | . 64 59 . 70 236 435 423 303 . . . . 540 727 915 Initial 315 | . . 24 . . 27 107 212 207 . . . . 202 279 315 Average 277 | . 36 38 . 57 75 239 292 263 . . . . 340 515 401 Maximum Alert Level 3 | . . . . . 1 2 2 1 . . . . 2 3 3 Low Security (%) 32 | 100 100 100 . 100 93 32 . 8 . . . . 4 . 9 Level 1 47 | . . . . . 6 61 90 91 . . . . 65 19 60 Level 2 14 | . . . . . . 5 9 . . . . . 30 62 16 Level 3 5 | . . . . . . . . . . . . . . 17 13 Level 4 . | . . . . . . . . . . . . . . . . Level 5 . | . . . . . . . . . . . . . . . . High Security . | . . . . . . . . . . . . . . . . Max Security . | . . . . . . . . . . . . . . . . Squads Dispatched 32 | . 1 . . . . 4 . 2 . . . . 3 6 16 Investigation 5 | . . . . . . 1 . 1 . . . . 1 2 . Extermination 6 | . . . . . . . . . . . . . 1 . 5 Reinforcement 12 | . 1 . . . . 3 . 1 . . . . . 1 6 Assault 3 | . . . . . . . . . . . . . 1 . 2 Garrison 6 | . . . . . . . . . . . . . . 3 3 Intercept . | . . . . . . . . . . . . . . . . Construction Impeded 1 | . . . . . . . . . . . . . . 1 . Haulers Reinforced 1 | . . . . . . 1 . . . . . . . . . Stealth | -11 -10 -10 -10 -9 -8 -7 -6 -5 -5 -5 -5 -4 -4 -3 -3 --------- Run | Scr Mat Min Exi Min Mat Fac Fac Fac Upp Upp War Pro Fac Res Tes Distress Signals 4 | . . . . . . . 1 . . . . . . . 3 Communications Jammed . | . . . . . . . . . . . . . . . . Distress Signals . | . . . . . . . . . . . . . . . . Times Spotted 205 | . 3 3 . 3 7 33 6 7 15 11 1 12 17 21 66 Peak Tracking Total 12 | . 4 3 . 3 5 7 5 5 9 3 1 4 5 6 12 Tactical Retreats 14 | . 1 . . . . 3 . . . . . 1 . 1 8 Traps | -11 -10 -10 -10 -9 -8 -7 -6 -5 -5 -5 -5 -4 -4 -3 -3 ------- Run | Scr Mat Min Exi Min Mat Fac Fac Fac Upp Upp War Pro Fac Res Tes Traps Triggered 3 | . . . . . . 1 . . . . . . . 1 1 Indirectly . | . . . . . . . . . . . . . . . . Trap Hack Attempts . | . . . . . . . . . . . . . . . . Triggered . | . . . . . . . . . . . . . . . . Disarmed . | . . . . . . . . . . . . . . . . Reprogrammed . | . . . . . . . . . . . . . . . . Reused . | . . . . . . . . . . . . . . . . Traps Extracted . | . . . . . . . . . . . . . . . . Installed . | . . . . . . . . . . . . . . . . Triggered 14 | . . . . . . . . . 1 . 13 . . . . Machines | -11 -10 -10 -10 -9 -8 -7 -6 -5 -5 -5 -5 -4 -4 -3 -3 ---------- Run | Scr Mat Min Exi Min Mat Fac Fac Fac Upp Upp War Pro Fac Res Tes Machines Disabled 19 | . . . . . . . 5 . 1 . . . 2 1 10 Max in Single Turn 1 | . . . . . . . 1 . 1 . . . 1 1 1 Garrison Access 2 | . . . . . . 1 . . . . . . 1 . . Machines Sabotaged . | . . . . . . . . . . . . . . . . Garrisons Compromised . | . . . . . . . . . . . . . . . . Overloaded Fab Kills . | . . . . . . . . . . . . . . . . Fab Network Shutdowns . | . . . . . . . . . . . . . . . . Hacking | -11 -10 -10 -10 -9 -8 -7 -6 -5 -5 -5 -5 -4 -4 -3 -3 --------- Run | Scr Mat Min Exi Min Mat Fac Fac Fac Upp Upp War Pro Fac Res Tes Machines Accessed 19 | . 2 . 1 . . 2 . 3 . . 5 . 2 1 3 Terminals 7 | . 2 . . . . . . 2 . . . . . . 3 Fabricators . | . . . . . . . . . . . . . . . . Repair Stations 1 | . . . . . . . . . . . . . 1 . . Recycling Units . | . . . . . . . . . . . . . . . . Scanalyzers . | . . . . . . . . . . . . . . . . Garrison Access 5 | . . . . . . 2 . 1 . . . . 1 1 . Total Hacks 42 | . 6 . 1 . . 3 . 7 . . 12 . 5 4 4 Successful 26 | . 5 . 1 . . 1 . 2 . . 12 . 4 . 1 Failed 16 | . 1 . . . . 2 . 5 . . . . 1 4 3 Catastrophic 4 | . . . . . . . . 2 . . . . . . 2 Database Lockouts . | . . . . . . . . . . . . . . . . Manual 9 | . 6 . 1 . . . . 1 . . 1 . . . . Terminals 13 | . 6 . . . . . . 3 . . . . . . 4 Fabricators . | . . . . . . . . . . . . . . . . Repair Stations 4 | . . . . . . . . . . . . . 4 . . Recycling Units . | . . . . . . . . . . . . . . . . Scanalyzers . | . . . . . . . . . . . . . . . . Garrison Access 12 | . . . . . . 3 . 4 . . . . 1 4 . Terminal Hacks 21 | . 5 . 1 . . . . 2 . . 12 . . . 1 Record 11 | . . . . . . . . 1 . . 10 . . . . Robot Analysis 3 | . 2 . . . . . . 1 . . . . . . . Prototype ID Bank 1 | . 1 . . . . . . . . . . . . . . Open Door 3 | . . . . . . . . . . . 2 . . . 1 Branch Access Points 1 | . 1 . . . . . . . . . . . . . . Zone Layout 1 | . 1 . . . . . . . . . . . . . . EX-Prototype ID Bank 1 | . . . 1 . . . . . . . . . . . . Fabricator Hacks . | . . . . . . . . . . . . . . . . Repair Station Hacks 3 | . . . . . . . . . . . . . 3 . . Scan Component 2 | . . . . . . . . . . . . . 2 . . Repair 1 | . . . . . . . . . . . . . 1 . . Recycling Unit Hacks . | . . . . . . . . . . . . . . . . Scanalyzer . | . . . . . . . . . . . . . . . . Garrison Access Hacks 2 | . . . . . . 1 . . . . . . 1 . . Seal Access 2 | . . . . . . 1 . . . . . . 1 . . Unauthorized Hacks . | . . . . . . . . . . . . . . . . Terminals . | . . . . . . . . . . . . . . . . Fabricators . | . . . . . . . . . . . . . . . . Repair Stations . | . . . . . . . . . . . . . . . . Recycling Units . | . . . . . . . . . . . . . . . . Scanalyzers . | . . . . . . . . . . . . . . . . Garrison Access . | . . . . . . . . . . . . . . . . Data Cores Recovered 1 | . . . . . . . . 1 . . . . . . . Used 1 | . . . . . . . . 1 . . . . . . . Hacking Detections 10 | . 1 . . . . 1 . 3 . . . . 1 1 3 Full Trace Events 4 | . . . . . . 1 . 1 . . . . 1 1 . Feedback Events . | . . . . . . . . . . . . . . . . Feedback Blocked . | . . . . . . . . . . . . . . . . Robot Schematics Acquired . | . . . . . . . . . . . . . . . . Robots Built . | . . . . . . . . . . . . . . . . Matter . | . . . . . . . . . . . . . . . . Time . | . . . . . . . . . . . . . . . . Total Robot Build Rating . | . . . . . . . . . . . . . . . . Part Schematics Acquired . | . . . . . . . . . . . . . . . . Parts Built . | . . . . . . . . . . . . . . . . Matter . | . . . . . . . . . . . . . . . . Time . | . . . . . . . . . . . . . . . . Total Part Build Rating . | . . . . . . . . . . . . . . . . Parts Repaired 1 | . . . . . . . . . . . . . 1 . . Time 25 | . . . . . . . . . . . . . 25 . . Parts Recycled . | . . . . . . . . . . . . . . . . Recycled Matter . | . . . . . . . . . . . . . . . . Retrieved Matter . | . . . . . . . . . . . . . . . . Retrieved Components . | . . . . . . . . . . . . . . . . Parts Scanalyzed . | . . . . . . . . . . . . . . . . Part Schematics Acquired . | . . . . . . . . . . . . . . . . Parts Damaged . | . . . . . . . . . . . . . . . . Bothacking | -11 -10 -10 -10 -9 -8 -7 -6 -5 -5 -5 -5 -4 -4 -3 -3 ------------ Run | Scr Mat Min Exi Min Mat Fac Fac Fac Upp Upp War Pro Fac Res Tes Used RIF Installer . | . . . . . . . . . . . . . . . . Robots Hacked . | . . . . . . . . . . . . . . . . Non-combat . | . . . . . . . . . . . . . . . . Combat . | . . . . . . . . . . . . . . . . Robot Hacks Applied . | . . . . . . . . . . . . . . . . Relay Couplers Released . | . . . . . . . . . . . . . . . . Robots Rewired 8 | . . . . . . . . . 2 . 5 1 . . . Allies Hacked . | . . . . . . . . . . . . . . . . Hacks Repelled . | . . . . . . . . . . . . . . . . Allies | -11 -10 -10 -10 -9 -8 -7 -6 -5 -5 -5 -5 -4 -4 -3 -3 -------- Run | Scr Mat Min Exi Min Mat Fac Fac Fac Upp Upp War Pro Fac Res Tes Total Allies 8 | . . . . . . . . . 2 . 5 1 . . . Largest Group 7 | . . . . . . . . . 2 2 7 5 5 . . Highest-Rated Group 323 | . . . . . . . . . 59 59 323 243 243 . . Highest-Rated Ally 60 | . . . . . . . . . 30 30 60 60 60 . . Total Orders . | . . . . . . . . . . . . . . . . Ally Attacks 48 | . . . . . . . . . . 18 7 20 3 . . Total Damage 1296 | . . . . . . . . . . 418 280 482 116 . . Kills 7 | . . . . . . . . . . 2 2 3 . . . Allies Corrupted . | . . . . . . . . . . . . . . . . Allies Melted . | . . . . . . . . . . . . . . . . Intel | -11 -10 -10 -10 -9 -8 -7 -6 -5 -5 -5 -5 -4 -4 -3 -3 ------- Run | Scr Mat Min Exi Min Mat Fac Fac Fac Upp Upp War Pro Fac Res Tes Robot Analysis Total 3 | . 2 . . . . . . 1 . . . . . . . Derelict Logs Recovered 2 | . . 1 . 1 . . . . . . . . . . . Drone Launches . | . . . . . . . . . . . . . . . . Drone Recoveries . | . . . . . . . . . . . . . . . . Decoded 0b10 Intel 11 | . . . . . . . . . . . . . . . 11 Items 11 | . . . . . . . . . . . . . . . 11 Exploration | -11 -10 -10 -10 -9 -8 -7 -6 -5 -5 -5 -5 -4 -4 -3 -3 ------------- Run | Scr Mat Min Exi Min Mat Fac Fac Fac Upp Upp War Pro Fac Res Tes Turns Passed 7481 | 86 275 533 197 119 325 662 390 435 397 315 808 372 522 439 1606 Spaces Moved 7088 | 67 202 655 230 62 432 869 593 504 417 473 1017 403 367 193 604 Core 26 | 6 . . . 9 . . . . . . 1 . . . 10 Treads . | . . . . . . . . . . . . . . . . Legs 1308 | 61 185 . . 46 . . . . . . . . 229 193 594 Wheels . | . . . . . . . . . . . . . . . . Hover 909 | . 17 655 230 7 . . . . . . . . . . . Flight 4845 | . . . . . 432 869 593 504 417 473 1016 403 138 . . Fastest Speed 50 | 50 56 56 56 116 50 50 50 50 50 50 50 50 50 120 112 Average Speed 65 | 115 116 56 83 138 50 50 50 50 50 50 50 50 94 120 122 Slowest Speed 950 | 150 150 56 116 250 50 50 50 50 50 50 650 50 122 122 950 Overloaded Moves . | . . . . . . . . . . . . . . . . Propulsion Burnouts . | . . . . . . . . . . . . . . . . Robots Hopped 52 | . . . . . 12 24 2 6 . . 7 1 . . . Cave-ins Triggered . | . . . . . . . . . . . . . . . . Exploration Rate (%) 39 | 3 45 99 60 12 28 26 14 15 58 61 92 67 9 4 43 Regions Visited 15 Branch Regions 8 Pre-discovered Areas 1 | . . 1 . . . . . . . . . . . . . Known Exits Taken 7 | . 1 . . . . . 1 1 1 1 1 1 . . . Unknown Exits Taken 8 | 1 . 1 1 1 1 1 . . . . . . 1 1 . Scrap Searched 8 | . . 1 . 1 . . . . 2 1 . 3 . . . Spaces Dug . | . . . . . . . . . . . . . . . . Terrain Destroyed 97 | . . . . . . 1 . . 2 6 . 8 51 3 26 Melee . | . . . . . . . . . . . . . . . . Projectile 97 | . . . . . . 1 . . 2 6 . 8 51 3 26 AOE . | . . . . . . . . . . . . . . . . Terrain Rammed . | . . . . . . . . . . . . . . . . Walls Destroyed . | . . . . . . . . . . . . . . . . Machines Disabled . | . . . . . . . . . . . . . . . . Actions | -11 -10 -10 -10 -9 -8 -7 -6 -5 -5 -5 -5 -4 -4 -3 -3 --------- Run | Scr Mat Min Exi Min Mat Fac Fac Fac Upp Upp War Pro Fac Res Tes Total 9241 | 73 232 814 235 77 507 978 658 677 566 530 1295 537 497 316 1249 Wait 1372 | . 12 148 . . 28 20 23 160 92 39 206 109 53 36 446 Move 6976 | 66 201 654 229 61 409 821 588 492 416 472 1005 400 366 192 604 Hop 45 | . . . . . 10 23 2 5 . . 4 1 . . . Pick Up 118 | 1 6 2 4 4 20 21 12 6 . 2 8 . 12 7 13 Fast Attach 55 | 6 2 1 1 2 3 5 2 . . . 2 1 3 6 21 Attach 38 | . 1 . . . 3 4 2 2 2 2 . . 9 4 9 Detach 3 | . . 1 . . . . . . 1 . 1 . . . . Swap 61 | . 1 . . 1 2 8 2 3 . 1 2 1 11 16 13 Drop 136 | . 4 3 1 . 13 25 11 6 . . 10 2 15 16 30 Fire 347 | . 5 5 . 9 19 51 16 3 28 14 18 22 28 38 91 Melee 20 | . . . . . . . . . . . . . . . 20 Ram 1 | . . . . . . . . . . . . . . . 1 Kick 2 | . . . . . . . . . . . . . . 1 1 Crush . | . . . . . . . . . . . . . . . . Escape Stasis . | . . . . . . . . . . . . . . . . Rewire 67 | . . . . . . . . . 27 . 39 1 . . . Trap . | . . . . . . . . . . . . . . . . Miscellaneous . | . . . . . . . . . . . . . . . . Route ------- -11/Scrapyard -10/Materials -10/Mines (discovered 3 exits: [*Mat x2] / *Exi) -10/Exiles (discovered 2 exits: [*Min x2]) -9/Mines -8/Materials -7/Factory -6/Factory -5/Factory -5/Upper Caves -5/Upper Caves -5/Warlord -4/Proximity Caves -4/Factory -3/Research -3/Testing History --------- Turn | Location | Event 9 | -11/Scrapyard | Discovered new exit (range 15) 87 | -11/Scrapyard | Entered Materials 117 | -10/Materials | Identified exit to Mines 305 | -10/Materials | Build established: Mutant 362 | -10/Materials | Entered Mines 434 | -10/Mines | Met a Derelict bent on vengeance 473 | -10/Mines | Discovered new exit (range 6) 496 | -10/Mines | Deemed a non-threat by the Exiles lab entrance 496 | -10/Mines | Discovered new exit (range 5) 535 | -10/Mines | Found a damaged Exp. Sensor Array with a note attached 537 | -10/Mines | Found Prototype Device 537 | -10/Mines | Identified Exp. Sensor Array 561 | -10/Mines | Excavation squad dispatched 561 | -10/Mines | A large section of the Mines collapsed 785 | -10/Mines | Discovered new exit (range 7) 895 | -10/Mines | Entered Exiles 904 | -10/Exiles | Discovered new exit (range 15) 910 | -10/Exiles | Met 8R-AWN 919 | -10/Exiles | Met EX-HEX 934 | -10/Exiles | Met EX-BIN 943 | -10/Exiles | Aligned with FarCom system 943 | -10/Exiles | Given EX-Vault access code 962 | -10/Exiles | Opened EX-Vault 967 | -10/Exiles | Found Lightpack 2.0 975 | -10/Exiles | Found Flying Fortress v7 978 | -10/Exiles | Found Modified TNC 1002 | -10/Exiles | Warned to stay clear of 0b10 Research branches 1037 | -10/Exiles | Met EX-DEC 1076 | -10/Exiles | Discovered new exit (range 14) 1092 | -10/Exiles | Stole three prototypes: Lightpack 2.0, Flying Fortress v7, Modified TNC 1092 | -10/Exiles | Entered Mines 1167 | -9/Mines | Discovered new exit (range 10) 1191 | -9/Mines | Learned Materials stockpile data 1211 | -9/Mines | Entered Materials 1211 | -8/Materials | Evolved 4 slots: Propulsion x2, Utility x2 1262 | -8/Materials | Build established: Hauler-Mutant 1529 | -8/Materials | Discovered new exit (range 9) 1536 | -8/Materials | Entered Factory 1536 | -7/Factory | Evolved 2 slots: Utility x1, Weapon x1 1538 | -7/Factory | FarCom data flow suspended 1828 | -7/Factory | Build established: Hauler-Gunner 2126 | -7/Factory | Lost 3 parts (1u2w) 2186 | -7/Factory | Discovered new exit (range 15) 2198 | -7/Factory | Entered another Factory area 2198 | -6/Factory | Evolved 2 slots: Utility x2 2547 | -6/Factory | Discovered new exit (range 13) 2560 | -6/Factory | Identified exit to Factory 2588 | -6/Factory | Entered another Factory area 2588 | -5/Factory | Evolved 2 slots: Utility x2 3016 | -5/Factory | Discovered new exit (range 16) 3023 | -5/Factory | Identified exit to Upper Caves 3023 | -5/Factory | Entered Upper Caves 3053 | -5/Upper Caves | Attracted the attention of an 0b10 checkpoint 3084 | -5/Upper Caves | Attracted the attention of an 0b10 outpost 3357 | -5/Upper Caves | Discovered new exit (range 15) 3363 | -5/Upper Caves | Identified exit to Upper Caves 3420 | -5/Upper Caves | Entered another Upper Caves area 3420 | -5/Upper Caves | Accompanied by 2 allies 3420 | -5/Upper Caves | Spotted RS-CWS(f) 3420 | -5/Upper Caves | Spotted DU-XK3(f) 3421 | -5/Upper Caves | Encountered a Master Thief 3421 | -5/Upper Caves | Encountered a Master Thief 3425 | -5/Upper Caves | Spotted GJ-3WB(f) 3425 | -5/Upper Caves | Destroyed RS-CWS(f) 3426 | -5/Upper Caves | Encountered a Master Thief 3428 | -5/Upper Caves | Destroyed GJ-3WB(f) 3432 | -5/Upper Caves | Destroyed DU-XK3(f) 3581 | -5/Upper Caves | Attracted the attention of an 0b10 checkpoint 3718 | -5/Upper Caves | Discovered new exit (range 6) 3720 | -5/Upper Caves | Identified exit to Warlord 3735 | -5/Upper Caves | Entered Warlord 3735 | -5/Warlord | Accompanied by 2 allies 3752 | -5/Warlord | Build established: Hauler-Scout 3876 | -5/Warlord | Found Prototype Device 3876 | -5/Warlord | Identified Minesniffer Drone Bay 4025 | -5/Warlord | Received a Watcher feed algorithm from an ecstatic Tinkerer 4042 | -5/Warlord | Warlord's base attacked by MAIN.C 4052 | -5/Warlord | Met Warlord 4221 | -5/Warlord | Found Prototype Piercing Weapon 4223 | -5/Warlord | Found Prototype Piercing Weapon 4279 | -5/Warlord | Build established: Commander-Scout 4392 | -5/Warlord | Warlord forces counterattacked 4427 | -5/Warlord | Opened side exit 4437 | -5/Warlord | Discovered new exit (range 9) 4441 | -5/Warlord | Identified exit to Proximity Caves 4543 | -5/Warlord | Entered Proximity Caves 4543 | -4/Proximity Caves | Accompanied by 4 allies 4585 | -4/Proximity Caves | Attracted the attention of an 0b10 checkpoint 4876 | -4/Proximity Caves | Discovered new exit (range 11) 4908 | -4/Proximity Caves | Identified exit to Factory 4915 | -4/Proximity Caves | Entered Factory 4915 | -4/Factory | Accompanied by 5 allies 4915 | -4/Factory | Evolved 2 slots: Utility x1, Weapon x1 4982 | -4/Factory | Repaired Coil Gun 5034 | -4/Factory | Lost 3 parts (1p2u) 5344 | -4/Factory | Build established: Scavenger-Gunner 5349 | -4/Factory | P-70 Sage assimilated allied Archangel 6b 5386 | -4/Factory | Discovered new exit (range 21) 5415 | -4/Factory | First assault squad dispatched 5437 | -4/Factory | Entered Research 5437 | -3/Research | Evolved 2 slots: Utility x2 5480 | -3/Research | Garrison activated, responded to threat 5593 | -3/Research | Lost 6 parts (1p3u2w) 5851 | -3/Research | Discovered new exit (range 9) 5876 | -3/Research | Entered Testing 6112 | -3/Testing | Lost 5 parts (1n2u2w) 6355 | -3/Testing | Scanned by Researcher 6369 | -3/Testing | Found Prototype Device 6369 | -3/Testing | Identified AEGIS Remote Shield 6394 | -3/Testing | Found Prototype Device 6394 | -3/Testing | Identified Exp. Hardlight Generator 6948 | -3/Testing | Found Prototype Protection 6948 | -3/Testing | Identified Lgt. Regenerative Plating 6953 | -3/Testing | Found Prototype Protection 6953 | -3/Testing | Identified Hvy. Regenerative Plating 6959 | -3/Testing | Found Prototype Protection 6959 | -3/Testing | Identified SHELL Armor 6966 | -3/Testing | Found Lgt. Regenerative Plating 7090 | -3/Testing | Found Prototype Energy Gun 7090 | -3/Testing | Identified Warp Gun 7153 | -3/Testing | Garrison activated, responded to threat 7320 | -3/Testing | Lost 5 parts (2n1u2w) 7363 | -3/Testing | Lost 6 parts (1p2n3w) 7372 | -3/Testing | Destroyed 9 combat bots 7393 | -3/Testing | System corruption reached 10% 7399 | -3/Testing | Identified Vortex Lance (x2) 7409 | -3/Testing | First assault squad dispatched 7419 | -3/Testing | Core integrity fell below 50% 7473 | -3/Testing | Core integrity fell below 20% 7482 | -3/Testing | Destroyed by G-73 Enforcer with Phase Gun Last Messages --------------- 07457_ System corrupted: Vortex Lance targeting data glitched. 07459_ P-80 Master destroyed. 07461_ G-67 Veteran destroyed. 07465_ Knocked back. 07465_ Destroyed Plasma Rifle. 07467_ G-67 Veteran suffers critical hit. 07467_ Destroyed Flexi-carbon Leg. 07469_ Med. Storage Unit destroyed. 07469_ G-67 Veteran destroyed. 07471_ Imp. Target Analyzer destroyed. 07471_ System corrupted by crushing effect (+3). 07471_ Knocked back. 07472_ C-30 ARC bursts open, deploying its payload. 07472_ G-73 Enforcer unfolds itself. 07472_ G-67 Veteran unfolds itself. 07472_ M-36 Artificer unfolds itself. 07472_ Vortex Lance destroyed. 07473_ Slammed into G-67 Veteran. 07476_ Acquired 5 matter. 07481_ System corrupted: Component data lost. Map ----- +----------------------------------------------------+ | ???????????????? !|== | | ???????????????? * | | ????????????????? | | ?????????????????+###############+################ | | ???????????????????????????????? ??????????????? | | ???????????????????????????????? ??????????????? | | ???????????????????????????????? ??????????????? | | ???????????????????????????????? ??????????????? | | ????????????????????????????????" "??????????????? | | ????????????????????????????????" "??????????????? | | ????????????????????????????????? ???????????????? | | ????????????????????????????????? ??????????]????? | | ?????????????????????????????????????????????????? | | ?????????????????????????????????????????????????? | | ??????????????????????###########????????????????? | | ??????????????????????# """ #????############# | | ??????????????????????# "T" #????# ! | | ??????????????????????# #????# [ | | ??????????????????????# """ """ #????# =![!|!! * | | ??????????????????????# """ """ #????# !=*[=*! !=% | | ??????????????????????# """[!"" #????# !=%% "%*=%= | | ??????????????????????# %!%%= #????# !%[="=|!==[ | | ??????????????????????# !!|!=!###### **!"%"%=!%* | | ?????????????##+#############g###[ !!# == [[%[=""" | | ?????????? g%= ![%# !%"""![""" | | ?????????? ^ w @ u! /Y==+ = """%= R" | | ????????????????########+######## # """= """ | | ????????????????????????????????# #### | | ??????????????????????????????? #??######"" ""## | | ??????????????????????????????# #???????#""S""#? | | ??????????????????????????????#####???????#"""" #? | | ???????????????????????????????????????????#####?? | | ?????????????????????????????????????????????????? | | ?????????????????????????????????????????????????? | | ?????????????????????????????????????????????????? | | ?????????????????????????????????????????????????? | | ?????????????????????????????????????????????????? | | ?????????????????????????????????????????????????? | | ?????????????????????????????????????????????????? | | ?????????????????????????????????????????????????? | | ?????????????????????????????????????????????????? | | ?????????????????????????????????????????????????? | | ?????????????????????????????????????????????????? | | ?????????????????????????????????????????????????? | | ?????????????????????????????????????????????????? | | ?????????????????????????????????????????????????? | | | | | | | | | +----------------------------------------------------+ Best States ------------- Heat Dissipation 65 Energy Generation 25 Energy Capacity 325 Matter Stores 700 Matter Capacity 700 Sight Range 22 Robot Scan Range 30 Terrain Scan Density 10 Armor Coverage 1050 Core Shielding 30 Weapon Cycling 20 Phase Shifting 10 Evasion (%) 60 Targeting Accuracy 40 Target Analysis 6 Armor Integrity Analysis 33 Matter Filtering 30 Kinecelleration 40 Item Schematics ----------------- None Robot Schematics ------------------ None Fabricated ------------ Nothing Alien Tech Used ----------------- None Achievements -------------- None Challenges ------------ None Game ------ Seed MicroNeutrinoMatrix Manual? 0 Play Time 01:20:46 Cumulative 114.1 hours Start 2021.04.02 @ 17:56:13 End 2021.04.02 @ 20:19:52 Sessions 1 Manual Loads 0 Difficulty Rogue Special Mode None Game No. 268 Rogue 115 Adventurer 148 Explorer 5 Win Type - Total 2 Types 2/0/0/0/0/0/0/0/0 Lore% 62 Gallery% 70 Achievement% 55 Wizard Run 0 Options --------- ASCII 0 Keyboard 0 Movement Numpad Keybinds 0 Fullscreen 1 Font 18/CogNarrow Map View 76x50 Tactical HUD 1 Map Filters NONE Filters NONE Steam 1 RUN: bc32fa33-96c5-46c8-a7cd-f142a2bac729